fUSD/lending_fUSD_20240224
["ID","MTS","AMOUNT","RATE_DAILY","PERIOD"]
[315094970,1708810303388,-500.0,0.00029315,2]
[315094971,1708810303397,-498.87488035,0.00029315,2]
[315094972,1708810303407,-500.0,0.00029315,2]
[315094973,1708810303421,-500.0,0.00029315,2]
[315094974,1708810303430,-500.0,0.00029315,2]
[315094975,1708810303439,-519.42997291,0.00029315,2]
[315094976,1708810303450,-500.0,0.00029315,2]
[315094977,1708810303459,-500.0,0.00029315,2]
[315094978,1708810303469,-500.0,0.00029315,2]
[315094979,1708810303478,-500.0,0.00029315,2]
[315094980,1708810303488,-500.0,0.00029315,2]
[315094981,1708810303497,-500.0,0.00029315,2]
[315094982,1708810303506,-618.86958422,0.00029315,2]
[315094983,1708810303515,-500.0,0.00029315,2]
[315094984,1708810303525,-476.62084932,0.00029315,2]
[315094985,1708810303534,-500.0,0.00029315,2]
[315094986,1708810303543,-500.0,0.00029315,2]
[315094987,1708810303552,-563.43,0.00029315,2]
[315094988,1708810303561,-167.4266698,0.00029315,2]
[315094989,1708810303570,-500.0,0.00029315,2]
[315094990,1708810303579,-500.0,0.00029315,2]
[315094991,1708810303588,-500.0,0.00029315,2]
[315094992,1708810303597,-240.68833518,0.00029315,2]
[315094993,1708810303606,-500.0,0.00029315,2]
[315094994,1708810303615,-500.0,0.00029315,2]
[315094995,1708810303624,-500.0,0.00029315,2]
[315094996,1708810303634,-500.0,0.00029315,2]
[315094997,1708810303643,-520.99950967,0.00029315,2]
[315094998,1708810303653,-500.0,0.00029315,2]
[315094999,1708810303662,-506.09,0.00029315,2]
[315095000,1708810303672,-500.0,0.00029315,2]
[315095001,1708810303681,-500.0,0.00029315,2]
[315095002,1708810303690,-500.0,0.00029315,2]
[315095003,1708810303699,-500.0,0.00029315,2]
[315095004,1708810303708,-500.0,0.00029315,2]
[315095005,1708810303717,-500.0,0.00029315,2]
[315095006,1708810303727,-619.83,0.00029315,2]
[315095007,1708810303736,-500.0,0.00029315,2]
[315095008,1708810303746,-500.0,0.00029315,2]
[315095009,1708810303755,-500.0,0.00029315,2]
[315095010,1708810303764,-500.0,0.00029315,2]
[315095011,1708810303773,-500.0,0.00029315,2]
[315095012,1708810303782,-500.0,0.00029315,2]
[315095013,1708810303791,-500.0,0.00029315,2]
[315095014,1708810303801,-500.0,0.00029315,2]
[315095015,1708810303810,-500.0,0.00029315,2]
[315095016,1708810303819,-500.0,0.00029315,2]
[315095017,1708810303828,-535.11,0.00029315,2]
[315095018,1708810303837,-500.0,0.00029315,2]
[315095019,1708810303846,-500.0,0.00029315,2]
[315095020,1708810303856,-500.0,0.00029315,2]
[315095021,1708810303865,-500.44,0.00029315,2]
[315095022,1708810303874,-500.0,0.00029315,2]
[315095023,1708810303883,-500.0,0.00029315,2]
[315095024,1708810303892,-500.0,0.00029315,2]
[315095025,1708810303901,-500.0,0.00029315,2]
[315095026,1708810303910,-500.0,0.00029315,2]
[315095027,1708810303919,-592.84002543,0.00029315,2]
[315095028,1708810303928,-592.43863074,0.00029315,2]
[315095029,1708810303938,-500.0,0.00029315,2]
[315095030,1708810303947,-500.0,0.00029315,2]
[315095031,1708810303957,-500.0,0.00029315,2]
[315095032,1708810303966,-720.75,0.00029315,2]
[315095033,1708810303975,-500.0,0.00029315,2]
[315095034,1708810303985,-500.0,0.00029315,2]
[315095035,1708810303994,-376.60249185,0.00029315,2]
[315095036,1708810304004,-1156.62,0.00029315,2]
[315095037,1708810304013,-500.0,0.00029315,2]
[315095038,1708810304022,-510.16,0.00029315,2]
[315095039,1708810304031,-851.9,0.00029315,2]
[315095040,1708810304040,-500.0,0.00029315,2]
[315095041,1708810304049,-500.0,0.00029315,2]
[315095042,1708810304058,-500.0,0.00029315,2]
[315095043,1708810304068,-500.0,0.00029315,2]
[315095044,1708810304077,-665.27,0.00029315,2]
[315095045,1708810304086,-675.27,0.00029315,2]
[315095046,1708810304096,-869.07,0.00029315,2]
[315095047,1708810304105,-654.25,0.00029315,2]
[315095048,1708810304114,-519.28809062,0.00029315,2]
[315095049,1708810304124,-500.0,0.00029315,2]
[315095050,1708810304134,-500.0,0.00029315,2]
[315095051,1708810304143,-500.0,0.00029315,2]
[315095052,1708810304153,-500.0,0.00029315,2]
[315095053,1708810304162,-500.0,0.00029315,2]
[315095054,1708810304171,-500.0,0.00029315,2]
[315095055,1708810304181,-524.99544907,0.00029315,2]
[315095056,1708810304190,-500.0,0.00029315,2]
[315095057,1708810304199,-600.58,0.00029315,2]
[315095058,1708810304210,-500.0,0.00029315,2]
[315095059,1708810304222,-500.0,0.00029315,2]
[315095060,1708810304232,-500.0,0.00029315,2]
[315095061,1708810304242,-500.0,0.00029315,2]
[315095062,1708810304251,-582.38044841,0.00029315,2]
[315095063,1708810304261,-500.0,0.00029315,2]
[315095064,1708810304270,-500.0,0.00029315,2]
[315095065,1708810304280,-500.0,0.00029315,2]
[315095066,1708810304291,-500.0,0.00029315,2]
[315095067,1708810304301,-500.0,0.00029315,2]
[315095068,1708810304310,-500.0,0.00029315,2]
[315095069,1708810304320,-500.0,0.00029315,2]
[315095070,1708810304329,-500.0,0.00029315,2]
[315095071,1708810304338,-500.0,0.00029315,2]
[315095072,1708810304347,-500.0,0.00029315,2]
[315095073,1708810304357,-523.346926,0.00029315,2]
[315095074,1708810304366,-500.0,0.00029315,2]
[315095075,1708810304376,-500.0,0.00029315,2]
[315095076,1708810304385,-500.0,0.00029315,2]
[315095077,1708810304394,-548.36,0.00029315,2]
[315095078,1708810304404,-500.0,0.00029315,2]
[315095079,1708810304414,-500.0,0.00029315,2]
[315095080,1708810304424,-500.0,0.00029315,2]
[315095081,1708810304433,-500.0,0.00029315,2]
[315095082,1708810304443,-500.0,0.00029315,2]
[315095083,1708810304452,-614.13,0.00029315,2]
[315095084,1708810304462,-619.97776916,0.00029315,2]
[315095085,1708810304471,-500.0,0.00029315,2]
[315095086,1708810304481,-500.0,0.00029315,2]
[315095087,1708810304491,-500.0,0.00029315,2]
[315095088,1708810304500,-500.0,0.00029315,2]
[315095089,1708810304510,-500.0,0.00029315,2]
[315095090,1708810304519,-500.0,0.00029315,2]
[315095091,1708810304529,-585.45,0.00029315,2]
[315095092,1708810304539,-500.0,0.00029315,2]
[315095093,1708810304548,-500.0,0.00029315,2]
[315095094,1708810304557,-1917.18,0.00029315,2]
[315095095,1708810304567,-500.0,0.00029315,2]
[315095096,1708810304576,-500.0,0.00029315,2]
[315095097,1708810304586,-500.0,0.00029315,2]
[315095098,1708810304596,-500.0,0.00029315,2]
[315095099,1708810304606,-500.0,0.00029315,2]
[315095100,1708810304615,-717.49,0.00029315,2]
[315095101,1708810304625,-500.0,0.00029315,2]
[315095102,1708810304634,-507.49,0.00029315,2]
[315095103,1708810304643,-500.0,0.00029315,2]
[315095104,1708810304653,-543.57227462,0.00029315,2]
[315095105,1708810304662,-500.0,0.00029315,2]
[315095106,1708810304672,-500.0,0.00029315,2]
[315095107,1708810304683,-533.35,0.00029315,2]
[315095108,1708810304693,-500.0,0.00029315,2]
[315095109,1708810304702,-655.31,0.00029315,2]
[315095110,1708810304711,-500.0,0.00029315,2]
[315095111,1708810304721,-564.52852762,0.00029315,2]
[315095112,1708810304730,-500.0,0.00029315,2]
[315095113,1708810304740,-528.13,0.00029315,2]
[315095114,1708810304749,-500.0,0.00029315,2]
[315095115,1708810304759,-500.0,0.00029315,2]
[315095116,1708810304769,-599.62707619,0.00029315,2]
[315095117,1708810304778,-500.0,0.00029315,2]
[315095118,1708810304788,-500.0,0.00029315,2]
[315095119,1708810304797,-500.0,0.00029315,2]
[315095120,1708810304806,-500.0,0.00029315,2]
[315095121,1708810304815,-556.62,0.00029315,2]
[315095122,1708810304824,-497.79435198,0.00029315,2]
[315095123,1708810304834,-443.32174376,0.00029315,2]
[315095124,1708810304843,-500.0,0.00029315,2]
[315095125,1708810304852,-500.0,0.00029315,2]
[315095126,1708810304861,-500.0,0.00029315,2]
[315095127,1708810304870,-500.0,0.00029315,2]
[315095128,1708810304879,-500.0,0.00029315,2]
[315095129,1708810304888,-585.67,0.00029315,2]
[315095130,1708810304897,-500.0,0.00029315,2]
[315095131,1708810304906,-500.0,0.00029315,2]
[315095132,1708810304915,-159.40308563,0.00029315,2]
[315095133,1708810304925,-500.0,0.00029315,2]
[315095134,1708810304935,-500.0,0.00029315,2]
[315095135,1708810304944,-500.0,0.00029315,2]
[315095136,1708810304953,-500.0,0.00029315,2]
[315095137,1708810304963,-500.0,0.00029315,2]
[315095138,1708810304972,-500.0,0.00029315,2]
[315095139,1708810304981,-500.0,0.00029315,2]
[315095140,1708810304990,-500.0,0.00029315,2]
[315095141,1708810304999,-500.0,0.00029315,2]
[315095142,1708810305009,-500.0,0.00029315,2]
[315095143,1708810305018,-500.0,0.00029315,2]
[315095144,1708810305027,-540.25,0.00029315,2]
[315095145,1708810305037,-500.0,0.00029315,2]
[315095146,1708810305046,-398.67479449,0.00029315,2]
[315095147,1708810305055,-500.0,0.00029315,2]
[315095148,1708810305065,-500.0,0.00029315,2]
[315095149,1708810305074,-500.0,0.00029315,2]
[315095150,1708810305083,-500.0,0.00029315,2]
[315095151,1708810305092,-500.0,0.00029315,2]
[315095152,1708810305101,-500.0,0.00029315,2]
[315095153,1708810305110,-2052.74,0.00029315,2]
[315095154,1708810305119,-538.32,0.00029315,2]
[315095155,1708810305128,-500.0,0.00029315,2]
[315095156,1708810305137,-500.0,0.00029315,2]
[315095157,1708810305147,-500.0,0.00029315,2]
[315095158,1708810305156,-500.0,0.00029315,2]
[315095159,1708810305166,-500.0,0.00029315,2]
[315095160,1708810305176,-500.0,0.00029315,2]
[315095161,1708810305185,-500.0,0.00029315,2]
[315095162,1708810305195,-500.0,0.00029315,2]
[315095163,1708810305204,-500.0,0.00029315,2]
[315095164,1708810305216,-500.0,0.00029315,2]
[315095165,1708810305225,-500.0,0.00029315,2]
[315095166,1708810305235,-500.0,0.00029315,2]
[315095167,1708810305244,-500.0,0.00029315,2]
[315095168,1708810305255,-500.0,0.00029315,2]
[315095169,1708810305264,-500.0,0.00029315,2]
[315095170,1708810305274,-500.0,0.00029315,2]
[315095171,1708810305283,-500.0,0.00029315,2]
[315095172,1708810305294,-500.0,0.00029315,2]
[315095173,1708810305305,-500.0,0.00029315,2]
[315095174,1708810305314,-550.51477619,0.00029315,2]
[315095175,1708810305324,-500.0,0.00029315,2]
[315095176,1708810305333,-526.30015928,0.00029315,2]
[315095177,1708810305342,-500.0,0.00029315,2]
[315095178,1708810305352,-500.0,0.00029315,2]
[315095179,1708810305362,-500.0,0.00029315,2]
[315095180,1708810305371,-500.0,0.00029315,2]
[315095181,1708810305650,-500.0,0.00029315,2]
[315095182,1708810305664,-500.0,0.00029315,2]
[315095183,1708810305673,-500.0,0.00029315,2]
[315095184,1708810305683,-500.0,0.00029315,2]
[315095185,1708810305692,-786.79,0.00029315,2]
[315095186,1708810305701,-500.0,0.00029315,2]
[315095187,1708810305710,-500.0,0.00029315,2]
[315095188,1708810305719,-500.0,0.00029315,2]
[315095189,1708810305730,-563.87457344,0.00029315,2]
[315095190,1708810305739,-500.0,0.00029315,2]
[315095191,1708810305749,-439.09748584,0.00029315,2]
[315095192,1708810305758,-500.0,0.00029315,2]
[315095193,1708810305769,-500.0,0.00029315,2]
[315095194,1708810305778,-500.0,0.00029315,2]
[315095195,1708810305788,-500.0,0.00029315,2]
[315095196,1708810305797,-627.35,0.00029315,2]
[315095197,1708810305807,-500.0,0.00029315,2]
[315095198,1708810305816,-500.0,0.00029315,2]
[315095199,1708810305825,-539.6,0.00029315,2]
[315095200,1708810305835,-500.0,0.00029315,2]
[315095201,1708810305844,-500.0,0.00029315,2]
[315095202,1708810305853,-561.65419192,0.00029315,2]
[315095203,1708810305862,-500.0,0.00029315,2]
[315095204,1708810305872,-521.35889803,0.00029315,2]
[315095205,1708810305882,-500.0,0.00029315,2]
[315095206,1708810305891,-500.0,0.00029315,2]
[315095207,1708810305900,-500.0,0.00029315,2]
[315095208,1708810305910,-500.0,0.00029315,2]
[315095209,1708810305919,-500.0,0.00029315,2]
[315095210,1708810305928,-500.0,0.00029315,2]
[315095211,1708810305937,-500.0,0.00029315,2]
[315095212,1708810305946,-500.0,0.00029315,2]
[315095213,1708810305956,-500.0,0.00029315,2]
[315095214,1708810305965,-500.0,0.00029315,2]
[315095215,1708810305974,-500.0,0.00029315,2]
[315095216,1708810305984,-500.0,0.00029315,2]
[315095217,1708810305994,-500.0,0.00029315,2]
[315095218,1708810306003,-500.0,0.00029315,2]
[315095219,1708810306013,-500.0,0.00029315,2]
[315095220,1708810306022,-500.0,0.00029315,2]
[315095221,1708810306031,-500.0,0.00029315,2]
[315095222,1708810306041,-513.21083692,0.00029315,2]
[315095223,1708810306050,-500.0,0.00029315,2]
[315095224,1708810306060,-500.0,0.00029315,2]
[315095225,1708810306069,-500.0,0.00029315,2]
[315095226,1708810306078,-500.0,0.00029315,2]
[315095227,1708810306087,-500.0,0.00029315,2]
[315095228,1708810306097,-521.65,0.00029315,2]
[315095229,1708810306106,-500.0,0.00029315,2]
[315095230,1708810306115,-500.0,0.00029315,2]
[315095231,1708810306125,-500.0,0.00029315,2]
[315095232,1708810306134,-500.0,0.00029315,2]
[315095233,1708810306143,-500.0,0.00029315,2]
[315095234,1708810306153,-500.0,0.00029315,2]
[315095235,1708810306162,-574.83,0.00029315,2]
[315095236,1708810306172,-500.0,0.00029315,2]
[315095237,1708810306181,-1865.83,0.00029315,2]
[315095238,1708810306191,-150.0,0.00029315,2]
[315095239,1708810306201,-719.34,0.00029315,2]
[315095240,1708810306213,-500.0,0.00029315,2]
[315095241,1708810306223,-500.0,0.00029315,2]
[315095242,1708810306233,-1620.46,0.00029315,2]
[315095243,1708810306242,-500.0,0.00029315,2]
[315095244,1708810306252,-500.0,0.00029315,2]
[315095245,1708810306262,-500.0,0.00029315,2]
[315095246,1708810306272,-589.1,0.00029315,2]
[315095247,1708810306282,-1249.24,0.00029315,2]
[315095248,1708810306293,-500.0,0.00029315,2]
[315095249,1708810306303,-4137.04,0.00029315,2]
[315095250,1708810306313,-500.0,0.00029315,2]
[315095251,1708810306323,-1988.0,0.00029315,2]
[315095252,1708810306332,-500.0,0.00029315,2]
[315095253,1708810306342,-1254.4,0.00029315,2]
[315095254,1708810306352,-967.56,0.00029315,2]
[315095255,1708810306362,-500.0,0.00029315,2]
[315095256,1708810306371,-965.13,0.00029315,2]
[315095257,1708810306381,-500.0,0.00029315,2]
[315095258,1708810306391,-3191.17,0.00029315,2]
[315095259,1708810306401,-500.0,0.00029315,2]
[315095260,1708810306410,-1128.66,0.00029315,2]
[315095261,1708810306420,-909.75,0.00029315,2]
[315095262,1708810306430,-500.0,0.00029315,2]
[315095263,1708810306440,-552.39,0.00029315,2]
[315095264,1708810306449,-593.85,0.00029315,2]
[315095265,1708810306459,-1113.17,0.00029315,2]
[315095266,1708810306469,-500.0,0.00029315,2]
[315095267,1708810306479,-4045.8,0.00029315,2]
[315095268,1708810306489,-1077.57,0.00029315,2]
[315095269,1708810306500,-500.0,0.00029315,2]
[315095270,1708810306509,-500.0,0.00029315,2]
[315095271,1708810306519,-500.0,0.00029315,2]
[315095272,1708810306529,-500.0,0.00029315,2]
[315095273,1708810306539,-500.0,0.00029315,2]
[315095274,1708810306549,-3078.01,0.00029315,2]
[315095275,1708810306558,-3378.46,0.00029315,2]
[315095276,1708810306567,-4414.52,0.00029315,2]
[315095277,1708810306576,-500.0,0.00029315,2]
[315095278,1708810306586,-3626.76,0.00029315,2]
[315095279,1708810306595,-500.0,0.00029315,2]
[315095280,1708810306604,-3257.12,0.00029315,2]
[315095281,1708810306613,-500.0,0.00029315,2]
[315095282,1708810306623,-500.0,0.00029315,2]
[315095283,1708810306633,-539.18,0.00029315,2]
[315095284,1708810306642,-748.17,0.00029315,2]
[315095285,1708810306651,-5146.88,0.00029315,2]
[315095286,1708810306660,-380.67474846,0.00029315,2]
[315095287,1708810306669,-500.0,0.00029315,2]
[315095288,1708810306680,-1570.48,0.00029315,2]
[315095289,1708810306690,-500.0,0.00029315,2]
[315095290,1708810306699,-500.0,0.00029315,2]
[315095291,1708810306709,-500.0,0.00029315,2]
[315095292,1708810306718,-500.0,0.00029315,2]
[315095293,1708810306727,-500.0,0.00029315,2]
[315095294,1708810306736,-500.0,0.00029315,2]
[315095295,1708810306746,-741.74,0.00029315,2]
[315095296,1708810306755,-500.0,0.00029315,2]
[315095297,1708810306765,-500.0,0.00029315,2]
[315095298,1708810306774,-500.0,0.00029315,2]
[315095299,1708810306783,-500.0,0.00029315,2]
[315095300,1708810306793,-720.57,0.00029315,2]
[315095301,1708810306803,-3824.68,0.00029315,2]
[315095302,1708810306814,-500.0,0.00029315,2]
[315095303,1708810306823,-500.0,0.00029315,2]
[315095304,1708810306832,-993.01,0.00029315,2]
[315095305,1708810306842,-500.0,0.00029315,2]
[315095306,1708810306852,-500.0,0.00029315,2]
[315095307,1708810306862,-500.0,0.00029315,2]
[315095308,1708810306871,-862.0,0.00029315,2]
[315095309,1708810306880,-614.63782611,0.00029315,2]
[315095310,1708810306890,-962.36,0.00029315,2]
[315095311,1708810306899,-500.0,0.00029315,2]
[315095312,1708810306908,-500.0,0.00029315,2]
[315095313,1708810306918,-677.57,0.00029315,2]
[315095314,1708810306927,-500.0,0.00029315,2]
[315095315,1708810306937,-1493.01,0.00029315,2]
[315095316,1708810306947,-661.48,0.00029315,2]
[315095317,1708810306956,-1197.16,0.00029315,2]
[315095318,1708810306964,-500.0,0.00029315,2]
[315095319,1708810306974,-500.0,0.00029315,2]
[315095320,1708810306983,-500.0,0.00029315,2]
[315095321,1708810306993,-500.0,0.00029315,2]
[315095322,1708810307002,-643.15,0.00029315,2]
[315095323,1708810307012,-1266.86,0.00029315,2]
[315095324,1708810307021,-1193.59,0.00029315,2]
[315095325,1708810307030,-624.93,0.00029315,2]
[315095326,1708810307040,-500.0,0.00029315,2]
[315095327,1708810307049,-586.19760929,0.00029315,2]
[315095328,1708810307059,-610.59,0.00029315,2]
[315095329,1708810307068,-500.0,0.00029315,2]
[315095330,1708810307077,-500.0,0.00029315,2]
[315095331,1708810307087,-650.57,0.00029315,2]
[315095332,1708810307096,-617.61,0.00029315,2]
[315095333,1708810307105,-785.98,0.00029315,2]
[315095334,1708810307114,-688.7,0.00029315,2]
[315095335,1708810307124,-500.0,0.00029315,2]
[315095336,1708810307134,-3270.7,0.00029315,2]
[315095337,1708810307144,-509.37,0.00029315,2]
[315095338,1708810307153,-500.0,0.00029315,2]
[315095339,1708810307163,-500.0,0.00029315,2]
[315095340,1708810307173,-6318.14,0.00029315,2]
[315095341,1708810307182,-1746.14,0.00029315,2]
[315095342,1708810307192,-500.0,0.00029315,2]
[315095343,1708810307203,-500.0,0.00029315,2]
[315095344,1708810307219,-500.0,0.00029315,2]
[315095345,1708810307229,-500.0,0.00029315,2]
[315095346,1708810307240,-500.0,0.00029315,2]
[315095347,1708810307250,-500.0,0.00029315,2]
[315095348,1708810307261,-500.0,0.00029315,2]
[315095349,1708810307271,-755.98,0.00029315,2]
[315095350,1708810307281,-562.19,0.00029315,2]
[315095351,1708810307291,-500.0,0.00029315,2]
[315095352,1708810307301,-898.07,0.00029315,2]
[315095353,1708810307311,-630.58,0.00029315,2]
[315095354,1708810307321,-500.0,0.00029315,2]
[315095355,1708810307330,-557.45,0.00029315,2]
[315095356,1708810307340,-637.87,0.00029315,2]
[315095357,1708810307349,-500.0,0.00029315,2]
[315095358,1708810307359,-668.5,0.00029315,2]
[315095359,1708810307369,-500.0,0.00029315,2]
[315095360,1708810307379,-500.0,0.00029315,2]
[315095361,1708810307388,-509.26,0.00029315,2]
[315095362,1708810307398,-1377.18,0.00029315,2]
[315095363,1708810307408,-669.18,0.00029315,2]
[315095364,1708810307417,-500.0,0.00029315,2]
[315095365,1708810307427,-1798.49,0.00029315,2]
[315095366,1708810307437,-1649.33,0.00029315,2]
[315095367,1708810307447,-574.79,0.00029315,2]
[315095368,1708810307457,-500.0,0.00029315,2]
[315095369,1708810307466,-500.0,0.00029315,2]
[315095370,1708810307476,-337.83608921,0.00029315,2]
[315095371,1708810307485,-667.98,0.00029315,2]
[315095372,1708810307495,-500.0,0.00029315,2]
[315095373,1708810307504,-500.0,0.00029315,2]
[315095374,1708810307514,-568.06,0.00029315,2]
[315095375,1708810307523,-500.0,0.00029315,2]
[315095376,1708810307533,-500.0,0.00029315,2]
[315095377,1708810307543,-1086.98,0.00029315,2]
[315095378,1708810307556,-1024.22,0.00029315,2]
[315095379,1708810307565,-754.1,0.00029315,2]
[315095380,1708810307575,-1911.86,0.00029315,2]
[315095381,1708810307584,-500.0,0.00029315,2]
[315095382,1708810307593,-500.0,0.00029315,2]
[315095383,1708810307603,-500.0,0.00029315,2]
[315095384,1708810307612,-1211.44,0.00029315,2]
[315095385,1708810307622,-500.0,0.00029315,2]
[315095386,1708810307631,-2683.79,0.00029315,2]
[315095387,1708810307641,-763.44,0.00029315,2]
[315095388,1708810307651,-761.74,0.00029315,2]
[315095389,1708810307660,-500.0,0.00029315,2]
[315095390,1708810307670,-500.0,0.00029315,2]
[315095391,1708810307679,-500.0,0.00029315,2]
[315095392,1708810307691,-3791.77,0.00029315,2]
[315095393,1708810307701,-500.0,0.00029315,2]
[315095394,1708810307711,-558.0,0.00029315,2]
[315095395,1708810307720,-500.0,0.00029315,2]
[315095396,1708810307730,-656.92,0.00029315,2]
[315095397,1708810307739,-500.0,0.00029315,2]
[315095398,1708810307749,-650.49,0.00029315,2]
[315095399,1708810307758,-10336.27,0.00029315,2]
[315095400,1708810307768,-1232.51,0.00029315,2]
[315095401,1708810307778,-759.92,0.00029315,2]
[315095402,1708810307787,-530.65,0.00029315,2]
[315095403,1708810307797,-500.0,0.00029315,2]
[315095404,1708810307806,-500.0,0.00029315,2]
[315095405,1708810307816,-1623.45,0.00029315,2]
[315095406,1708810307827,-869.76,0.00029315,2]
[315095407,1708810307838,-2066.73,0.00029315,2]
[315095408,1708810307847,-500.0,0.00029315,2]
[315095409,1708810307857,-713.18,0.00029315,2]
[315095410,1708810307867,-2785.74,0.00029315,2]
[315095411,1708810307876,-500.0,0.00029315,2]
[315095412,1708810307886,-500.0,0.00029315,2]
[315095413,1708810307895,-1087.52,0.00029315,2]
[315095414,1708810307905,-769.16,0.00029315,2]
[315095415,1708810307915,-794.25,0.00029315,2]
[315095416,1708810307925,-5728.28,0.00029315,2]
[315095417,1708810307935,-1094.48,0.00029315,2]
[315095418,1708810307945,-500.0,0.00029315,2]
[315095419,1708810307956,-950.08,0.00029315,2]
[315095420,1708810307965,-500.0,0.00029315,2]
[315095421,1708810307975,-1104.7,0.00029315,2]
[315095422,1708810308078,-4776.88,0.00029315,2]
[315095423,1708810308088,-500.0,0.00029315,2]
[315095424,1708810308097,-787.59,0.00029315,2]
[315095425,1708810308106,-1079.64,0.00029315,2]
[315095426,1708810308115,-1722.68,0.00029315,2]
[315095427,1708810308125,-500.0,0.00029315,2]
[315095428,1708810308134,-500.0,0.00029315,2]
[315095429,1708810308143,-500.0,0.00029315,2]
[315095430,1708810308153,-500.0,0.00029315,2]
[315095431,1708810308162,-500.0,0.00029315,2]
[315095432,1708810308172,-545.78,0.00029315,2]
[315095433,1708810308181,-500.0,0.00029315,2]
[315095434,1708810308190,-870.54,0.00029315,2]
[315095435,1708810308200,-1404.99,0.00029315,2]
[315095436,1708810308211,-500.0,0.00029315,2]
[315095437,1708810308222,-541.24232685,0.00029315,2]
[315095438,1708810308232,-500.0,0.00029315,2]
[315095439,1708810308241,-500.0,0.00029315,2]
[315095440,1708810308250,-540.96,0.00029315,2]
[315095441,1708810308261,-663.68,0.00029315,2]
[315095442,1708810308271,-518.41,0.00029315,2]
[315095443,1708810308281,-584.76,0.00029315,2]
[315095444,1708810308292,-500.0,0.00029315,2]
[315095445,1708810308303,-500.0,0.00029315,2]
[315095446,1708810308313,-500.0,0.00029315,2]
[315095447,1708810308323,-1088.17,0.00029315,2]
[315095448,1708810308333,-706.22,0.00029315,2]
[315095449,1708810308342,-703.51,0.00029315,2]
[315095450,1708810308352,-811.6,0.00029315,2]
[315095451,1708810308362,-653.11,0.00029315,2]
[315095452,1708810308371,-500.0,0.00029315,2]
[315095453,1708810308382,-1095.43,0.00029315,2]
[315095454,1708810308391,-500.0,0.00029315,2]
[315095455,1708810308401,-618.19,0.00029315,2]
[315095456,1708810308411,-2081.06,0.00029315,2]
[315095457,1708810308420,-1162.71,0.00029315,2]
[315095458,1708810308430,-943.46,0.00029315,2]
[315095459,1708810308439,-1409.4,0.00029315,2]
[315095460,1708810308449,-500.0,0.00029315,2]
[315095461,1708810308458,-500.0,0.00029315,2]
[315095462,1708810308467,-500.0,0.00029315,2]
[315095463,1708810308476,-500.0,0.00029315,2]
[315095464,1708810308486,-632.23,0.00029315,2]
[315095465,1708810308495,-500.0,0.00029315,2]
[315095466,1708810308504,-500.0,0.00029315,2]
[315095467,1708810308513,-500.0,0.00029315,2]
[315095468,1708810308523,-5041.87986465,0.00029338,2]
[315095469,1708810308532,-150.0,0.0002939,2]